[Event "Early-Titled-Tuesday-Blitz-March-12-2024"]
[Site "Chess.com"]
[Date "2024.03.12"]
[Round "4"]
[White "enriquebutti"]
[Black "Lady_Nika"]
[Result "0-1"]
[WhiteElo "2227"]
[BlackElo "2549"]
[TimeControl "180+1"]
[EndTime "8:35:22 PDT"]
[Termination "Lady_Nika won by checkmate"]

1. d4 {[%clk 0:03:00]} 1... d5 {[%clk 0:02:59.9]} 2. c4 {[%clk 0:02:59.4]} 2...
e6 {[%clk 0:03:00.2]} 3. Nf3 {[%clk 0:02:57]} 3... f5 {[%clk 0:02:58.5]} 4. e3
{[%clk 0:02:51.8]} 4... Nf6 {[%clk 0:02:58.7]} 5. Bd3 {[%clk 0:02:51.1]} 5... c6
{[%clk 0:02:59]} 6. O-O {[%clk 0:02:50.6]} 6... Bd6 {[%clk 0:02:59]} 7. b3
{[%clk 0:02:50.2]} 7... Nbd7 {[%clk 0:02:58.8]} 8. Ba3 {[%clk 0:02:49.4]} 8...
Bxa3 {[%clk 0:02:57.2]} 9. Nxa3 {[%clk 0:02:48]} 9... Qe7 {[%clk 0:02:56.9]} 10.
Nc2 {[%clk 0:02:43.8]} 10... Ne4 {[%clk 0:02:57]} 11. Qc1 {[%clk 0:02:31.7]}
11... O-O {[%clk 0:02:46.1]} 12. Qb2 {[%clk 0:02:31]} 12... Rf6 {[%clk
0:02:42.5]} 13. cxd5 {[%clk 0:02:21.4]} 13... exd5 {[%clk 0:02:42.4]} 14. Ne5
{[%clk 0:02:20.6]} 14... Nxe5 {[%clk 0:02:42.5]} 15. dxe5 {[%clk 0:02:20]} 15...
Rh6 {[%clk 0:02:43]} 16. g3 {[%clk 0:02:14.6]} 16... Qf7 {[%clk 0:02:28.5]} 17.
Be2 {[%clk 0:02:02.9]} 17... g5 {[%clk 0:02:25.5]} 18. f3 {[%clk 0:01:58.3]}
18... Qh5 {[%clk 0:02:15.5]} 19. fxe4 {[%clk 0:01:43.8]} 19... Qxh2# {[%clk
0:02:14.2]} 0-1

[Event "Early-Titled-Tuesday-Blitz-March-12-2024"]
[Site "Chess.com"]
[Date "2024.03.12"]
[Round "4"]
[White "MidnightFox"]
[Black "RobertoJBM"]
[Result "1-0"]
[WhiteElo "2495"]
[BlackElo "2818"]
[TimeControl "180+1"]
[EndTime "8:35:40 PDT"]
[Termination "MidnightFox won by checkmate"]

1. d4 {[%clk 0:03:00.9]} 1... c6 {[%clk 0:03:00.9]} 2. c4 {[%clk 0:02:59.3]}
2... d5 {[%clk 0:03:01.8]} 3. Nf3 {[%clk 0:02:59.5]} 3... Nf6 {[%clk 0:03:02]}
4. Nc3 {[%clk 0:02:59.9]} 4... dxc4 {[%clk 0:03:02]} 5. e4 {[%clk 0:02:59.4]}
5... b5 {[%clk 0:03:02]} 6. e5 {[%clk 0:02:59.3]} 6... Nd5 {[%clk 0:03:01.5]} 7.
a4 {[%clk 0:03:00]} 7... e6 {[%clk 0:02:59.9]} 8. axb5 {[%clk 0:02:59.8]} 8...
Nxc3 {[%clk 0:02:59.9]} 9. bxc3 {[%clk 0:03:00.7]} 9... cxb5 {[%clk 0:03:00.3]}
10. Ng5 {[%clk 0:03:00.7]} 10... Bb7 {[%clk 0:03:00.6]} 11. Qh5 {[%clk
0:02:59.3]} 11... g6 {[%clk 0:02:59.3]} 12. Qg4 {[%clk 0:02:59.7]} 12... Be7
{[%clk 0:02:53.9]} 13. Be2 {[%clk 0:02:59.9]} 13... h5 {[%clk 0:02:51.6]} 14.
Qg3 {[%clk 0:02:57.3]} 14... Nc6 {[%clk 0:02:47.4]} 15. Bf3 {[%clk 0:02:55.2]}
15... Qd7 {[%clk 0:02:43.9]} 16. Ne4 {[%clk 0:02:49.8]} 16... Nxd4 {[%clk
0:02:19.2]} 17. cxd4 {[%clk 0:02:44.9]} 17... Qxd4 {[%clk 0:02:19.3]} 18. Qf4
{[%clk 0:02:33.4]} 18... Qxa1 {[%clk 0:02:08.6]} 19. O-O {[%clk 0:02:32.7]}
19... Qa6 {[%clk 0:01:58.2]} 20. Nf6+ {[%clk 0:02:15.5]} 20... Kf8 {[%clk
0:01:40.4]} 21. Qh6+ {[%clk 0:02:03.6]} 21... Rxh6 {[%clk 0:01:32.3]} 22. Bxh6#
{[%clk 0:02:04.5]} 1-0

[Event "Early-Titled-Tuesday-Blitz-March-12-2024"]
[Site "Chess.com"]
[Date "2024.03.12"]
[Round "4"]
[White "platy3"]
[Black "Susal_De_Silva"]
[Result "1-0"]
[WhiteElo "2946"]
[BlackElo "2703"]
[TimeControl "180+1"]
[EndTime "8:35:52 PDT"]
[Termination "platy3 won by resignation"]

1. e4 {[%clk 0:03:00.9]} 1... e5 {[%clk 0:02:59.3]} 2. Nf3 {[%clk 0:03:01.3]}
2... Nc6 {[%clk 0:03:00]} 3. Bc4 {[%clk 0:03:02]} 3... Nf6 {[%clk 0:02:59.8]} 4.
d3 {[%clk 0:03:02.7]} 4... h6 {[%clk 0:02:59.9]} 5. a4 {[%clk 0:03:02.4]} 5...
d6 {[%clk 0:03:00.1]} 6. O-O {[%clk 0:03:02.1]} 6... g5 {[%clk 0:03:00.1]} 7. c3
{[%clk 0:03:00.2]} 7... g4 {[%clk 0:02:59.2]} 8. Ne1 {[%clk 0:02:55.7]} 8... h5
{[%clk 0:02:58.9]} 9. f4 {[%clk 0:02:55.4]} 9... exf4 {[%clk 0:02:56.7]} 10.
Bxf4 {[%clk 0:02:54.5]} 10... Bh6 {[%clk 0:02:56.1]} 11. Qd2 {[%clk 0:02:49.5]}
11... Bg7 {[%clk 0:01:41.1]} 12. Bg5 {[%clk 0:02:48]} 12... Nb8 {[%clk
0:01:21.7]} 13. Qf4 {[%clk 0:02:37.8]} 13... Nbd7 {[%clk 0:01:20.6]} 14. d4
{[%clk 0:02:37.8]} 14... Qe7 {[%clk 0:01:18.3]} 15. Nd3 {[%clk 0:02:34.9]} 15...
Qxe4 {[%clk 0:01:01.4]} 16. Re1 {[%clk 0:02:26.5]} 16... Qxe1+ {[%clk
0:00:59.2]} 17. Nxe1 {[%clk 0:02:27.4]} 17... O-O {[%clk 0:00:58.8]} 18. Nd2
{[%clk 0:02:25]} 1-0

[Event "Early-Titled-Tuesday-Blitz-March-12-2024"]
[Site "Chess.com"]
[Date "2024.03.12"]
[Round "4"]
[White "Taran2004"]
[Black "WilsonPalencia21"]
[Result "0-1"]
[WhiteElo "2401"]
[BlackElo "2566"]
[TimeControl "180+1"]
[EndTime "8:36:12 PDT"]
[Termination "WilsonPalencia21 won by resignation"]

1. e4 {[%clk 0:03:00.9]} 1... c5 {[%clk 0:02:50.5]} 2. Nf3 {[%clk 0:03:00.4]}
2... d6 {[%clk 0:02:50.2]} 3. d4 {[%clk 0:03:00.6]} 3... cxd4 {[%clk 0:02:50.3]}
4. Qxd4 {[%clk 0:03:01.5]} 4... Nc6 {[%clk 0:02:50.1]} 5. Bb5 {[%clk 0:03:00.9]}
5... Qa5+ {[%clk 0:02:46.7]} 6. Nc3 {[%clk 0:03:01.1]} 6... Qxb5 {[%clk
0:02:46.9]} 7. Nxb5 {[%clk 0:03:01.4]} 7... Nxd4 {[%clk 0:02:47.8]} 8. Nfxd4
{[%clk 0:02:55.2]} 8... Kd8 {[%clk 0:02:47.7]} 9. c4 {[%clk 0:02:55.3]} 9... Bd7
{[%clk 0:02:44.9]} 10. Be3 {[%clk 0:02:53.8]} 10... a6 {[%clk 0:02:44.3]} 11.
Nc3 {[%clk 0:02:53.9]} 11... e6 {[%clk 0:02:44.1]} 12. O-O-O {[%clk 0:02:53.1]}
12... Rc8 {[%clk 0:02:44.2]} 13. b3 {[%clk 0:02:53]} 13... b5 {[%clk 0:02:42]}
14. Kb2 {[%clk 0:02:45.9]} 14... bxc4 {[%clk 0:02:41.5]} 15. b4 {[%clk
0:02:46.4]} 15... Nf6 {[%clk 0:02:38.4]} 16. f3 {[%clk 0:02:45.6]} 16... Be7
{[%clk 0:02:31.3]} 17. a4 {[%clk 0:02:43.7]} 17... Rb8 {[%clk 0:02:25.1]} 18. b5
{[%clk 0:02:41.6]} 18... axb5 {[%clk 0:02:25]} 19. Ndxb5 {[%clk 0:02:41.3]}
19... Bxb5 {[%clk 0:02:16.5]} 20. axb5 {[%clk 0:02:39.5]} 20... Kd7 {[%clk
0:02:12]} 21. Kc2 {[%clk 0:02:30.9]} 21... Rhc8 {[%clk 0:02:10.4]} 22. Ra1
{[%clk 0:02:30.4]} 22... Rb7 {[%clk 0:02:08.9]} 23. Rhd1 {[%clk 0:02:29]} 23...
Ke8 {[%clk 0:02:03.9]} 24. Ra7 {[%clk 0:02:22.8]} 24... Rcb8 {[%clk 0:01:59.5]}
25. Rda1 {[%clk 0:02:15.9]} 25... d5 {[%clk 0:01:54.2]} 26. exd5 {[%clk
0:02:10.4]} 26... Nxd5 {[%clk 0:01:53.7]} 27. Nxd5 {[%clk 0:02:10.6]} 27... exd5
{[%clk 0:01:53.3]} 28. Rxb7 {[%clk 0:02:09]} 28... Rxb7 {[%clk 0:01:53.1]} 29.
b6 {[%clk 0:02:09.9]} 29... Kd7 {[%clk 0:01:51.7]} 30. Ra8 {[%clk 0:02:08.7]}
30... Bf6 {[%clk 0:01:50]} 31. Bc5 {[%clk 0:02:07.4]} 31... d4 {[%clk
0:01:42.8]} 32. Rf8 {[%clk 0:02:06.8]} 32... Kc6 {[%clk 0:01:39.8]} 33. Rc8+
{[%clk 0:02:06.9]} 33... Kb5 {[%clk 0:01:39.6]} 34. Rc7 {[%clk 0:02:07.8]} 34...
d3+ {[%clk 0:01:35.8]} 35. Kd1 {[%clk 0:02:06.4]} 35... Ka6 {[%clk 0:01:34.8]}
0-1

[Event "Early-Titled-Tuesday-Blitz-March-12-2024"]
[Site "Chess.com"]
[Date "2024.03.12"]
[Round "4"]
[White "bazar-wokzal"]
[Black "Javylavilla"]
[Result "1-0"]
[WhiteElo "2551"]
[BlackElo "2367"]
[TimeControl "180+1"]
[EndTime "8:36:21 PDT"]
[Termination "bazar-wokzal won by checkmate"]

1. e4 {[%clk 0:03:00.9]} 1... c5 {[%clk 0:02:48.1]} 2. c3 {[%clk 0:03:00.4]}
2... Nf6 {[%clk 0:02:46.9]} 3. e5 {[%clk 0:03:00.6]} 3... Nd5 {[%clk 0:02:46.1]}
4. d4 {[%clk 0:03:01.5]} 4... cxd4 {[%clk 0:02:47]} 5. cxd4 {[%clk 0:03:02.2]}
5... d6 {[%clk 0:02:47.3]} 6. Bc4 {[%clk 0:03:02.2]} 6... Nb6 {[%clk 0:02:46.4]}
7. Bb3 {[%clk 0:03:02.6]} 7... Nc6 {[%clk 0:02:46.5]} 8. e6 {[%clk 0:03:01.3]}
8... fxe6 {[%clk 0:02:43.8]} 9. Nf3 {[%clk 0:02:59.5]} 9... Bd7 {[%clk 0:02:30]}
10. Nc3 {[%clk 0:02:49]} 10... Nd5 {[%clk 0:02:29.1]} 11. O-O {[%clk 0:02:40.3]}
11... Nxc3 {[%clk 0:02:20.6]} 12. bxc3 {[%clk 0:02:40.1]} 12... Qc7 {[%clk
0:02:21.5]} 13. Ng5 {[%clk 0:02:33.2]} 13... d5 {[%clk 0:02:21]} 14. Qf3 {[%clk
0:02:28.8]} 14... O-O-O {[%clk 0:02:18.5]} 15. Nf7 {[%clk 0:02:27.5]} 15... Rg8
{[%clk 0:02:17.3]} 16. Nxd8 {[%clk 0:02:21.3]} 16... Qxd8 {[%clk 0:02:18.2]} 17.
Qf7 {[%clk 0:02:17.7]} 17... Rh8 {[%clk 0:02:17.3]} 18. Re1 {[%clk 0:02:16]}
18... g6 {[%clk 0:02:15.8]} 19. Bg5 {[%clk 0:02:09.9]} 19... h6 {[%clk
0:02:13.5]} 20. Bh4 {[%clk 0:01:57.5]} 20... g5 {[%clk 0:02:11.4]} 21. Bg3
{[%clk 0:01:57.4]} 21... h5 {[%clk 0:02:12.1]} 22. h4 {[%clk 0:01:53.3]} 22...
Bh6 {[%clk 0:02:06.7]} 23. Ba4 {[%clk 0:01:44.1]} 23... gxh4 {[%clk 0:02:04]}
24. Bxh4 {[%clk 0:01:38.1]} 24... Rg8 {[%clk 0:02:02.4]} 25. Bxc6 {[%clk
0:01:34.6]} 25... bxc6 {[%clk 0:01:59.8]} 26. Rab1 {[%clk 0:01:29.9]} 26... Bf4
{[%clk 0:01:53.2]} 27. Qxf4 {[%clk 0:01:27.3]} 27... Rg4 {[%clk 0:01:50.5]} 28.
Qb8# {[%clk 0:01:25.4]} 1-0

[Event "Early-Titled-Tuesday-Blitz-March-12-2024"]
[Site "Chess.com"]
[Date "2024.03.12"]
[Round "4"]
[White "Akhayan"]
[Black "VojtechPlat"]
[Result "0-1"]
[WhiteElo "2313"]
[BlackElo "2868"]
[TimeControl "180+1"]
[EndTime "8:36:24 PDT"]
[Termination "VojtechPlat won by resignation"]

1. e4 {[%clk 0:03:00.9]} 1... d6 {[%clk 0:02:59.7]} 2. d4 {[%clk 0:03:00.4]}
2... Nf6 {[%clk 0:03:00.6]} 3. Nc3 {[%clk 0:03:00.7]} 3... e5 {[%clk 0:03:00.2]}
4. Nf3 {[%clk 0:03:00]} 4... exd4 {[%clk 0:03:00.4]} 5. Nxd4 {[%clk 0:02:59.6]}
5... Be7 {[%clk 0:03:01.3]} 6. Be2 {[%clk 0:02:58.1]} 6... O-O {[%clk
0:03:01.3]} 7. O-O {[%clk 0:02:58.4]} 7... Re8 {[%clk 0:03:01.9]} 8. Re1 {[%clk
0:02:55.7]} 8... Bf8 {[%clk 0:03:02]} 9. Bf1 {[%clk 0:02:56.1]} 9... Nbd7 {[%clk
0:03:02]} 10. h3 {[%clk 0:02:56]} 10... Nc5 {[%clk 0:03:02]} 11. Bg5 {[%clk
0:02:53]} 11... h6 {[%clk 0:03:01.8]} 12. Bxf6 {[%clk 0:02:52.2]} 12... Qxf6
{[%clk 0:03:01.6]} 13. Nd5 {[%clk 0:02:45.3]} 13... Qd8 {[%clk 0:03:01.2]} 14.
Bd3 {[%clk 0:02:41.3]} 14... c6 {[%clk 0:03:01.2]} 15. Ne3 {[%clk 0:02:39.3]}
15... g6 {[%clk 0:03:00.2]} 16. Nc4 {[%clk 0:02:36.8]} 16... Bg7 {[%clk
0:02:59.6]} 17. c3 {[%clk 0:02:36.1]} 17... d5 {[%clk 0:02:59.6]} 18. Na3 {[%clk
0:02:12.6]} 18... dxe4 {[%clk 0:02:56.8]} 19. Bc2 {[%clk 0:02:09.8]} 19... f5
{[%clk 0:02:51.3]} 20. Nc4 {[%clk 0:02:02.2]} 20... Ne6 {[%clk 0:02:50.5]} 21.
Nb3 {[%clk 0:01:54.1]} 21... Qe7 {[%clk 0:02:46.7]} 22. Qd6 {[%clk 0:01:50]}
22... Bd7 {[%clk 0:02:41.9]} 23. Rad1 {[%clk 0:01:48.9]} 23... Rad8 {[%clk
0:02:41.7]} 24. Qxe7 {[%clk 0:01:47.3]} 24... Rxe7 {[%clk 0:02:41.6]} 25. Nd6
{[%clk 0:01:47.3]} 25... Rb8 {[%clk 0:02:40]} 26. Na5 {[%clk 0:01:40.8]} 26...
Nc5 {[%clk 0:02:36.7]} 27. Nb3 {[%clk 0:01:29.3]} 27... Na4 {[%clk 0:02:32.1]}
28. Na5 {[%clk 0:01:21.6]} 28... Nxb2 {[%clk 0:02:31.3]} 29. Bb3+ {[%clk
0:01:08.9]} 29... Kh7 {[%clk 0:02:30]} 30. Nac4 {[%clk 0:00:54.7]} 30... Nxd1
{[%clk 0:02:27.1]} 0-1

[Event "Early-Titled-Tuesday-Blitz-March-12-2024"]
[Site "Chess.com"]
[Date "2024.03.12"]
[Round "4"]
[White "mishanick"]
[Black "Yan_Dyomin2010"]
[Result "1-0"]
[WhiteElo "3093"]
[BlackElo "2721"]
[TimeControl "180+1"]
[EndTime "8:36:34 PDT"]
[Termination "mishanick won by resignation"]

1. d4 {[%clk 0:03:00.9]} 1... Nf6 {[%clk 0:02:57.2]} 2. c4 {[%clk 0:03:01.3]}
2... g6 {[%clk 0:02:56.4]} 3. Nc3 {[%clk 0:03:01.8]} 3... d6 {[%clk 0:02:57]} 4.
e4 {[%clk 0:03:02.1]} 4... Bg7 {[%clk 0:02:56.8]} 5. Bd3 {[%clk 0:03:02.8]} 5...
O-O {[%clk 0:02:56]} 6. Nge2 {[%clk 0:03:03.2]} 6... e5 {[%clk 0:02:54]} 7. d5
{[%clk 0:03:03.3]} 7... a5 {[%clk 0:02:53.6]} 8. f3 {[%clk 0:03:03.8]} 8... Na6
{[%clk 0:02:53.2]} 9. Be3 {[%clk 0:03:04.2]} 9... Nc5 {[%clk 0:02:51.3]} 10. Bc2
{[%clk 0:03:04.6]} 10... Bd7 {[%clk 0:02:46.6]} 11. Qd2 {[%clk 0:03:04.7]} 11...
Rb8 {[%clk 0:02:06.8]} 12. a3 {[%clk 0:03:01.8]} 12... Ra8 {[%clk 0:02:02.8]}
13. O-O-O {[%clk 0:02:59.4]} 13... Qe8 {[%clk 0:01:59.5]} 14. Kb1 {[%clk
0:02:59.4]} 14... a4 {[%clk 0:01:58.3]} 15. g4 {[%clk 0:02:59.9]} 15... Nb3
{[%clk 0:01:58.1]} 16. Bxb3 {[%clk 0:02:59.2]} 16... axb3 {[%clk 0:01:59]} 17.
Nc1 {[%clk 0:02:59.7]} 17... b5 {[%clk 0:01:58.2]} 18. cxb5 {[%clk 0:02:57.1]}
18... Bxb5 {[%clk 0:01:57.6]} 19. Nxb5 {[%clk 0:02:57.4]} 19... Qxb5 {[%clk
0:01:58.5]} 20. Qd3 {[%clk 0:02:56.7]} 20... Qa6 {[%clk 0:01:54]} 21. Qxa6
{[%clk 0:02:56.4]} 21... Rxa6 {[%clk 0:01:53.3]} 22. Rd3 {[%clk 0:02:56.9]}
22... Nd7 {[%clk 0:01:46.9]} 23. Rxb3 {[%clk 0:02:56.7]} 23... f5 {[%clk
0:01:46.1]} 24. gxf5 {[%clk 0:02:54.3]} 24... gxf5 {[%clk 0:01:46.2]} 25. Nd3
{[%clk 0:02:54.7]} 25... fxe4 {[%clk 0:01:46.4]} 26. fxe4 {[%clk 0:02:55.6]}
26... Nf6 {[%clk 0:01:46]} 27. Nf2 {[%clk 0:02:50.6]} 27... c6 {[%clk
0:01:39.9]} 28. dxc6 {[%clk 0:02:49.6]} 28... Rxc6 {[%clk 0:01:40.8]} 29. Rd1
{[%clk 0:02:46.8]} 29... Ra8 {[%clk 0:01:35.8]} 30. Rbd3 {[%clk 0:02:37.5]}
30... Bf8 {[%clk 0:01:35.7]} 31. Bg5 {[%clk 0:02:37.6]} 31... Nd7 {[%clk
0:01:35.1]} 32. Rc1 {[%clk 0:02:23.4]} 32... Nc5 {[%clk 0:01:32.3]} 33. Rg3
{[%clk 0:02:22.6]} 33... Kg7 {[%clk 0:01:25.8]} 34. b4 {[%clk 0:02:10.5]} 34...
Rb6 {[%clk 0:01:14.4]} 35. Bd8+ {[%clk 0:02:09.3]} 1-0

[Event "Early-Titled-Tuesday-Blitz-March-12-2024"]
[Site "Chess.com"]
[Date "2024.03.12"]
[Round "4"]
[White "LiamPutnam2008"]
[Black "NikitaShnadrygin"]
[Result "1-0"]
[WhiteElo "2896"]
[BlackElo "2681"]
[TimeControl "180+1"]
[EndTime "8:36:46 PDT"]
[Termination "LiamPutnam2008 won by resignation"]

1. d4 {[%clk 0:03:00.9]} 1... d5 {[%clk 0:02:58.7]} 2. c4 {[%clk 0:03:00.8]}
2... Nc6 {[%clk 0:02:58.9]} 3. Nf3 {[%clk 0:02:55.8]} 3... Bg4 {[%clk
0:02:58.3]} 4. Nc3 {[%clk 0:02:48.7]} 4... e6 {[%clk 0:02:56.9]} 5. cxd5 {[%clk
0:02:46.6]} 5... exd5 {[%clk 0:02:57.8]} 6. Bg5 {[%clk 0:02:47]} 6... Be7 {[%clk
0:02:48.2]} 7. Bxe7 {[%clk 0:02:47.1]} 7... Ngxe7 {[%clk 0:02:49.1]} 8. e3
{[%clk 0:02:47.8]} 8... O-O {[%clk 0:02:48.5]} 9. Be2 {[%clk 0:02:47.6]} 9... a6
{[%clk 0:02:20.9]} 10. O-O {[%clk 0:02:44.8]} 10... Qd6 {[%clk 0:02:20.3]} 11.
Rc1 {[%clk 0:02:44.1]} 11... Nd8 {[%clk 0:02:12.1]} 12. h3 {[%clk 0:02:41.9]}
12... Bh5 {[%clk 0:02:09.6]} 13. Qb3 {[%clk 0:02:19]} 13... Rb8 {[%clk
0:01:58.2]} 14. Rfd1 {[%clk 0:02:12.7]} 14... Ne6 {[%clk 0:01:54.1]} 15. Ne5
{[%clk 0:02:04.5]} 15... Bxe2 {[%clk 0:01:46.7]} 16. Nxe2 {[%clk 0:02:05.4]}
16... c5 {[%clk 0:01:41.3]} 17. Qa3 {[%clk 0:02:04.1]} 17... b5 {[%clk
0:01:03.2]} 18. Nd3 {[%clk 0:01:46.1]} 18... b4 {[%clk 0:00:58.1]} 19. dxc5
{[%clk 0:01:46.2]} 19... bxa3 {[%clk 0:00:53.1]} 20. cxd6 {[%clk 0:01:45.7]}
20... axb2 {[%clk 0:00:53.8]} 21. dxe7 {[%clk 0:01:43.8]} 1-0

[Event "Early-Titled-Tuesday-Blitz-March-12-2024"]
[Site "Chess.com"]
[Date "2024.03.12"]
[Round "4"]
[White "Superfelix"]
[Black "Kirill_Klukin"]
[Result "0-1"]
[WhiteElo "2605"]
[BlackElo "2821"]
[TimeControl "180+1"]
[EndTime "8:37:00 PDT"]
[Termination "Kirill_Klukin won by checkmate"]

1. e4 {[%clk 0:03:00.9]} 1... c5 {[%clk 0:03:00.1]} 2. Nf3 {[%clk 0:03:00.9]}
2... g6 {[%clk 0:03:00.1]} 3. h4 {[%clk 0:03:00.4]} 3... h5 {[%clk 0:02:58.4]}
4. Bc4 {[%clk 0:03:00.8]} 4... Bg7 {[%clk 0:02:58.6]} 5. e5 {[%clk 0:02:58.5]}
5... Nc6 {[%clk 0:02:56.6]} 6. Qe2 {[%clk 0:02:56.6]} 6... Qc7 {[%clk
0:02:50.8]} 7. d4 {[%clk 0:02:56.7]} 7... Nxd4 {[%clk 0:02:43.3]} 8. Nxd4 {[%clk
0:02:55.7]} 8... cxd4 {[%clk 0:02:44.2]} 9. Bf4 {[%clk 0:02:55.7]} 9... Nh6
{[%clk 0:02:39.9]} 10. Nd2 {[%clk 0:02:53]} 10... O-O {[%clk 0:02:31.1]} 11. Ne4
{[%clk 0:02:52.5]} 11... Ng4 {[%clk 0:02:25.5]} 12. Ng5 {[%clk 0:02:49.8]} 12...
Nxe5 {[%clk 0:02:21.2]} 13. Bb3 {[%clk 0:02:48]} 13... d6 {[%clk 0:02:16.3]} 14.
O-O-O {[%clk 0:02:46.5]} 14... d3 {[%clk 0:02:11]} 15. Rxd3 {[%clk 0:02:43.3]}
15... Nxd3+ {[%clk 0:02:10.9]} 16. Qxd3 {[%clk 0:02:43.3]} 16... Bf5 {[%clk
0:02:10.8]} 17. Qe2 {[%clk 0:02:42.9]} 17... Rac8 {[%clk 0:02:08.6]} 18. f3
{[%clk 0:02:41.6]} 18... Qb6 {[%clk 0:01:44.4]} 19. g4 {[%clk 0:02:31.1]} 19...
hxg4 {[%clk 0:01:03.8]} 20. fxg4 {[%clk 0:02:32]} 20... Bxc2 {[%clk 0:01:04]}
21. Bxc2 {[%clk 0:02:26.1]} 21... Qxb2+ {[%clk 0:01:03.4]} 22. Kd1 {[%clk
0:02:25.9]} 22... Qa1+ {[%clk 0:00:45.2]} 23. Bc1 {[%clk 0:02:23.5]} 23... Bb2
{[%clk 0:00:44.3]} 24. Kd2 {[%clk 0:02:20.3]} 24... Rxc2+ {[%clk 0:00:37.9]} 25.
Kxc2 {[%clk 0:02:18.7]} 25... Rc8+ {[%clk 0:00:38.6]} 26. Kb3 {[%clk 0:02:13.5]}
26... Bxc1 {[%clk 0:00:38.1]} 27. Ne4 {[%clk 0:02:05.7]} 27... Qb1+ {[%clk
0:00:32.2]} 28. Ka4 {[%clk 0:02:05.3]} 28... Rc2 {[%clk 0:00:32]} 29. Qb5 {[%clk
0:02:03.9]} 29... Rxa2# {[%clk 0:00:31.4]} 0-1

[Event "Early-Titled-Tuesday-Blitz-March-12-2024"]
[Site "Chess.com"]
[Date "2024.03.12"]
[Round "4"]
[White "atbenina64"]
[Black "koncheto"]
[Result "1-0"]
[WhiteElo "2733"]
[BlackElo "2468"]
[TimeControl "180+1"]
[EndTime "8:37:06 PDT"]
[Termination "atbenina64 won by resignation"]

1. Nf3 {[%clk 0:03:00.9]} 1... Nf6 {[%clk 0:02:58.1]} 2. c4 {[%clk 0:03:01.5]}
2... e6 {[%clk 0:02:57.4]} 3. Nc3 {[%clk 0:03:00.4]} 3... d5 {[%clk 0:02:56.2]}
4. d4 {[%clk 0:03:01]} 4... c6 {[%clk 0:02:55]} 5. e3 {[%clk 0:02:56.4]} 5...
Nbd7 {[%clk 0:02:53.3]} 6. Qc2 {[%clk 0:02:56.4]} 6... Bd6 {[%clk 0:02:48.2]} 7.
Bd3 {[%clk 0:02:54.7]} 7... dxc4 {[%clk 0:02:48]} 8. Bxc4 {[%clk 0:02:55.6]}
8... b5 {[%clk 0:02:43.6]} 9. Be2 {[%clk 0:02:55.4]} 9... Bb7 {[%clk 0:02:41.1]}
10. O-O {[%clk 0:02:55.6]} 10... O-O {[%clk 0:02:36.8]} 11. Rd1 {[%clk
0:02:54.2]} 11... Qe7 {[%clk 0:02:26.1]} 12. e4 {[%clk 0:02:45.8]} 12... e5
{[%clk 0:02:26.2]} 13. Bg5 {[%clk 0:02:41.8]} 13... h6 {[%clk 0:02:14.7]} 14.
Bh4 {[%clk 0:02:38.5]} 14... b4 {[%clk 0:01:52.8]} 15. Na4 {[%clk 0:02:38.1]}
15... exd4 {[%clk 0:01:51.8]} 16. Nxd4 {[%clk 0:02:38.7]} 16... g6 {[%clk
0:00:22.1]} 17. Nxc6 {[%clk 0:02:38.3]} 17... Bxc6 {[%clk 0:00:07]} 18. Qxc6
{[%clk 0:02:39.2]} 18... Be5 {[%clk 0:00:07.7]} 19. Bb5 {[%clk 0:02:23.9]} 19...
Rfd8 {[%clk 0:00:06.2]} 20. Rxd7 {[%clk 0:02:16.7]} 20... Rxd7 {[%clk
0:00:02.3]} 21. Bxf6 {[%clk 0:02:14.3]} 21... Qxf6 {[%clk 0:00:02.1]} 22. Qxf6
{[%clk 0:02:13.9]} 22... Rad8 {[%clk 0:00:03]} 23. Bxd7 {[%clk 0:02:13.8]} 1-0

[Event "Early-Titled-Tuesday-Blitz-March-12-2024"]
[Site "Chess.com"]
[Date "2024.03.12"]
[Round "4"]
[White "crazyluzhinTh3"]
[Black "Chessdude1987"]
[Result "1-0"]
[WhiteElo "2556"]
[BlackElo "2399"]
[TimeControl "180+1"]
[EndTime "8:37:10 PDT"]
[Termination "crazyluzhinTh3 won on time"]

1. e4 {[%clk 0:03:00.9]} 1... e6 {[%clk 0:02:59.3]} 2. d4 {[%clk 0:03:00.5]}
2... d5 {[%clk 0:02:59.8]} 3. Nc3 {[%clk 0:03:00.4]} 3... Nf6 {[%clk 0:02:59.4]}
4. Bg5 {[%clk 0:02:59.9]} 4... h6 {[%clk 0:02:58.5]} 5. Bxf6 {[%clk 0:02:58.7]}
5... Qxf6 {[%clk 0:02:59.4]} 6. b3 {[%clk 0:02:58.3]} 6... Bb4 {[%clk
0:02:55.7]} 7. Qd3 {[%clk 0:02:58]} 7... dxe4 {[%clk 0:02:47.8]} 8. Qc4 {[%clk
0:02:57.1]} 8... c5 {[%clk 0:01:51.5]} 9. Ne2 {[%clk 0:02:51.8]} 9... Nd7 {[%clk
0:01:13.7]} 10. dxc5 {[%clk 0:02:27.6]} 10... Bxc5 {[%clk 0:01:09.3]} 11. O-O-O
{[%clk 0:02:24.9]} 11... O-O {[%clk 0:00:53.5]} 12. Kb1 {[%clk 0:02:25.4]} 12...
b5 {[%clk 0:00:43.7]} 13. Qxe4 {[%clk 0:02:22.5]} 13... Rb8 {[%clk 0:00:41.3]}
14. Qg4 {[%clk 0:02:19.2]} 14... Ba3 {[%clk 0:00:32.6]} 15. Qd4 {[%clk 0:02:16]}
15... e5 {[%clk 0:00:27]} 16. Qxa7 {[%clk 0:02:11.7]} 16... b4 {[%clk
0:00:23.4]} 17. Nd5 {[%clk 0:02:07.9]} 17... Qd6 {[%clk 0:00:09]} 18. Ng3 {[%clk
0:02:07.8]} 18... Nc5 {[%clk 0:00:03.9]} 19. Bc4 {[%clk 0:02:02.2]} 19... Bg4
{[%clk 0:00:02.4]} 20. Ne7+ {[%clk 0:02:01.7]} 1-0

[Event "Early-Titled-Tuesday-Blitz-March-12-2024"]
[Site "Chess.com"]
[Date "2024.03.12"]
[Round "4"]
[White "jaskol95"]
[Black "Fandorine"]
[Result "0-1"]
[WhiteElo "2557"]
[BlackElo "2950"]
[TimeControl "180+1"]
[EndTime "8:37:16 PDT"]
[Termination "Fandorine won by resignation"]

1. e4 {[%clk 0:03:00.9]} 1... e5 {[%clk 0:02:58.6]} 2. Nf3 {[%clk 0:03:00.6]}
2... Nc6 {[%clk 0:02:58.3]} 3. Bc4 {[%clk 0:03:01.3]} 3... Nf6 {[%clk
0:02:56.3]} 4. Ng5 {[%clk 0:03:00.9]} 4... Bc5 {[%clk 0:02:51.4]} 5. Nxf7 {[%clk
0:02:55.8]} 5... Qe7 {[%clk 0:02:31.1]} 6. Nxh8 {[%clk 0:02:43.7]} 6... Bxf2+
{[%clk 0:02:30.8]} 7. Kf1 {[%clk 0:02:19.4]} 7... d5 {[%clk 0:02:28.6]} 8. exd5
{[%clk 0:02:17.2]} 8... Nd4 {[%clk 0:02:23.6]} 9. d6 {[%clk 0:02:17.4]} 9...
Qxd6 {[%clk 0:02:20.5]} 10. Nf7 {[%clk 0:02:10.5]} 10... Qc5 {[%clk 0:02:09.3]}
11. d3 {[%clk 0:02:08.9]} 11... b5 {[%clk 0:01:59.5]} 12. b4 {[%clk 0:02:04.6]}
12... Qb6 {[%clk 0:01:51.5]} 13. c3 {[%clk 0:01:45.2]} 13... bxc4 {[%clk
0:01:48.4]} 14. cxd4 {[%clk 0:01:43.4]} 14... Bxd4 {[%clk 0:01:46.9]} 15. dxc4
{[%clk 0:00:59.6]} 15... Kxf7 {[%clk 0:01:41.9]} 16. Nc3 {[%clk 0:00:53.4]}
16... Bxc3 {[%clk 0:01:40.3]} 17. Rb1 {[%clk 0:00:53.7]} 17... Be6 {[%clk
0:01:38.9]} 18. Qd3 {[%clk 0:00:48.9]} 18... Rd8 {[%clk 0:01:19.3]} 19. Qxc3
{[%clk 0:00:42.9]} 19... Rd1+ {[%clk 0:01:18.8]} 20. Ke2 {[%clk 0:00:43.6]}
20... Bg4+ {[%clk 0:01:18.7]} 0-1